[Event "*** Titled Tuesday Blitz"]
[Site "Chess.com"]
[Date "2021.03.09"]
[Round "4"]
[White "Malev212"]
[Black "queen_iryna"]
[Result "0-1"]
[WhiteElo "2533"]
[BlackElo "2359"]
[TimeControl "180+1"]
[EndTime "10:41:42 PST"]
[Termination "queen_iryna won by resignation"]

1. b4 {[%clk 0:03:00.9]} 1... Nf6 {[%clk 0:02:51.8]} 2. Bb2 {[%clk 0:03:00]}
2... g6 {[%clk 0:02:52.2]} 3. g4 {[%clk 0:02:58.7]} 3... Bg7 {[%clk 0:02:47.6]}
4. g5 {[%clk 0:02:58.6]} 4... Nh5 {[%clk 0:02:47.4]} 5. Bxg7 {[%clk 0:02:56.3]}
5... Nxg7 {[%clk 0:02:48.3]} 6. Nc3 {[%clk 0:02:55.3]} 6... d6 {[%clk
0:02:42.8]} 7. h4 {[%clk 0:02:54.4]} 7... e5 {[%clk 0:02:40]} 8. e3 {[%clk
0:02:54.3]} 8... h5 {[%clk 0:02:38.8]} 9. Bg2 {[%clk 0:02:53.8]} 9... O-O {[%clk
0:02:36.4]} 10. Nge2 {[%clk 0:02:53.6]} 10... Bg4 {[%clk 0:02:32.3]} 11. f3
{[%clk 0:02:47.3]} 11... Be6 {[%clk 0:02:32.2]} 12. Ng3 {[%clk 0:02:46.9]} 12...
d5 {[%clk 0:02:16.3]} 13. Nce2 {[%clk 0:02:34.4]} 13... Nc6 {[%clk 0:02:09.4]}
14. b5 {[%clk 0:02:33.5]} 14... Ne7 {[%clk 0:02:08.8]} 15. d4 {[%clk 0:02:33.3]}
15... Ngf5 {[%clk 0:01:52.9]} 16. Qd2 {[%clk 0:02:29.7]} 16... exd4 {[%clk
0:01:42]} 17. exd4 {[%clk 0:02:29.5]} 17... c6 {[%clk 0:01:37.6]} 18. bxc6
{[%clk 0:02:27.9]} 18... bxc6 {[%clk 0:01:37.4]} 19. Kf2 {[%clk 0:02:26.3]}
19... Qd6 {[%clk 0:01:27.6]} 20. c3 {[%clk 0:01:58.3]} 20... Rab8 {[%clk
0:01:24.5]} 21. Rab1 {[%clk 0:01:39.2]} 21... Rxb1 {[%clk 0:01:17.9]} 22. Rxb1
{[%clk 0:01:40.1]} 22... Nxh4 {[%clk 0:01:17.7]} 23. Qf4 {[%clk 0:01:39.2]}
23... Nef5 {[%clk 0:00:50.3]} 24. Qxd6 {[%clk 0:01:25.3]} 24... Nxd6 {[%clk
0:00:51.2]} 25. Nf4 {[%clk 0:01:18.6]} 25... Nhf5 {[%clk 0:00:25.2]} 26. Nxf5
{[%clk 0:01:09.3]} 26... Bxf5 {[%clk 0:00:25.4]} 27. Rb4 {[%clk 0:01:07.6]}
27... Re8 {[%clk 0:00:24.9]} 28. Bf1 {[%clk 0:01:06.1]} 28... Kg7 {[%clk
0:00:23.6]} 29. a4 {[%clk 0:01:05.3]} 29... Re7 {[%clk 0:00:22.9]} 30. a5 {[%clk
0:01:05]} 30... Rb7 {[%clk 0:00:22.6]} 31. Ba6 {[%clk 0:00:53]} 31... Rxb4
{[%clk 0:00:21.3]} 32. cxb4 {[%clk 0:00:53.9]} 32... Bc8 {[%clk 0:00:20.6]} 33.
Bf1 {[%clk 0:00:49.5]} 33... Nf5 {[%clk 0:00:19.9]} 34. b5 {[%clk 0:00:46.8]}
34... Nxd4 {[%clk 0:00:17.6]} 35. b6 {[%clk 0:00:42.2]} 35... axb6 {[%clk
0:00:17.7]} 36. a6 {[%clk 0:00:41.1]} 36... b5 {[%clk 0:00:16.1]} 37. a7 {[%clk
0:00:40.8]} 37... Bb7 {[%clk 0:00:16.3]} 38. Nd3 {[%clk 0:00:41.3]} 38... Ne6
{[%clk 0:00:15.2]} 39. Bh3 {[%clk 0:00:39.7]} 39... Nc7 {[%clk 0:00:14.6]} 40.
Nc5 {[%clk 0:00:38.3]} 40... Ba8 {[%clk 0:00:14.8]} 41. Bc8 {[%clk 0:00:37.3]}
41... b4 {[%clk 0:00:14.4]} 42. Nd7 {[%clk 0:00:33.3]} 42... Nb5 {[%clk
0:00:13.3]} 43. Nb6 {[%clk 0:00:30]} 43... Nxa7 {[%clk 0:00:12.3]} 0-1

[Event "*** Titled Tuesday Blitz"]
[Site "Chess.com"]
[Date "2021.03.09"]
[Round "4"]
[White "Savagelittlemole"]
[Black "KazakhFighter04"]
[Result "0-1"]
[WhiteElo "2525"]
[BlackElo "2755"]
[TimeControl "180+1"]
[EndTime "10:41:43 PST"]
[Termination "KazakhFighter04 won on time"]

1. e4 {[%clk 0:03:00.9]} 1... d5 {[%clk 0:02:25.1]} 2. exd5 {[%clk 0:02:58.9]}
2... Qxd5 {[%clk 0:02:26]} 3. Nc3 {[%clk 0:02:58.3]} 3... Qa5 {[%clk 0:02:11.2]}
4. Bc4 {[%clk 0:02:57.8]} 4... Nf6 {[%clk 0:02:11.6]} 5. d4 {[%clk 0:02:56.8]}
5... Nc6 {[%clk 0:02:09.7]} 6. Ne2 {[%clk 0:02:52]} 6... Bg4 {[%clk 0:02:07.5]}
7. f3 {[%clk 0:02:52]} 7... Bh5 {[%clk 0:02:06.4]} 8. Bd2 {[%clk 0:02:49.9]}
8... O-O-O {[%clk 0:02:05.9]} 9. Nd5 {[%clk 0:02:37.6]} 9... Qa4 {[%clk
0:02:05.6]} 10. Bb3 {[%clk 0:01:59.3]} 10... Qa6 {[%clk 0:01:54.6]} 11. Nxf6
{[%clk 0:01:58.9]} 11... gxf6 {[%clk 0:01:55.5]} 12. O-O {[%clk 0:01:52.2]}
12... Nxd4 {[%clk 0:01:45.6]} 13. Nxd4 {[%clk 0:01:52.1]} 13... Rxd4 {[%clk
0:01:46.5]} 14. Qe1 {[%clk 0:01:50.6]} 14... e6 {[%clk 0:01:39.7]} 15. Bc3
{[%clk 0:01:49.7]} 15... Rf4 {[%clk 0:01:23.7]} 16. Qd2 {[%clk 0:01:28.9]} 16...
Bd6 {[%clk 0:01:21]} 17. Rad1 {[%clk 0:01:23.6]} 17... Rg8 {[%clk 0:01:14]} 18.
Kh1 {[%clk 0:01:17.5]} 18... Rh4 {[%clk 0:01:09.2]} 19. h3 {[%clk 0:01:09.7]}
19... Rg3 {[%clk 0:00:50.8]} 20. Bxf6 {[%clk 0:00:54.1]} 20... Rgxh3+ {[%clk
0:00:49.8]} 21. gxh3 {[%clk 0:00:51.6]} 21... Rxh3+ {[%clk 0:00:50.7]} 22. Kg2
{[%clk 0:00:50.1]} 22... Rh2+ {[%clk 0:00:50.8]} 23. Kg1 {[%clk 0:00:47.5]}
23... Rxd2 {[%clk 0:00:38.4]} 24. Rxd2 {[%clk 0:00:48.4]} 24... Qa5 {[%clk
0:00:37.3]} 25. Rg2 {[%clk 0:00:42.5]} 25... Qf5 {[%clk 0:00:32.8]} 26. Bd4
{[%clk 0:00:30.5]} 26... Bxf3 {[%clk 0:00:27.1]} 27. Rg8+ {[%clk 0:00:17]} 27...
Kd7 {[%clk 0:00:27.1]} 28. c3 {[%clk 0:00:14.7]} 28... Qh3 {[%clk 0:00:25.4]}
29. Kf2 {[%clk 0:00:12.9]} 29... Be4 {[%clk 0:00:20.3]} 30. Rfg1 {[%clk
0:00:07.2]} 30... c5 {[%clk 0:00:12.5]} 31. Bg7 {[%clk 0:00:03.6]} 31... Bf4
{[%clk 0:00:09.7]} 32. Rd1+ {[%clk 0:00:02.1]} 32... Kc7 {[%clk 0:00:10.2]} 0-1

[Event "*** Titled Tuesday Blitz"]
[Site "Chess.com"]
[Date "2021.03.09"]
[Round "4"]
[White "allvim"]
[Black "Lupul_Cenusiu"]
[Result "1/2-1/2"]
[WhiteElo "2357"]
[BlackElo "2565"]
[TimeControl "180+1"]
[EndTime "10:41:43 PST"]
[Termination "Game drawn by repetition"]

1. e4 {[%clk 0:03:00.9]} 1... c5 {[%clk 0:02:59]} 2. Nf3 {[%clk 0:03:00.9]} 2...
e6 {[%clk 0:02:57.9]} 3. b3 {[%clk 0:03:00.3]} 3... a6 {[%clk 0:02:56.9]} 4. Bb2
{[%clk 0:02:56.6]} 4... Nc6 {[%clk 0:02:57]} 5. Be2 {[%clk 0:02:54.5]} 5... d6
{[%clk 0:02:56.1]} 6. O-O {[%clk 0:02:54.6]} 6... Nf6 {[%clk 0:02:56.1]} 7. e5
{[%clk 0:02:49]} 7... dxe5 {[%clk 0:02:55.2]} 8. Nxe5 {[%clk 0:02:49.9]} 8...
Nxe5 {[%clk 0:02:55.1]} 9. Bxe5 {[%clk 0:02:50]} 9... Be7 {[%clk 0:02:51]} 10.
c4 {[%clk 0:02:45.7]} 10... O-O {[%clk 0:02:46.3]} 11. Nc3 {[%clk 0:02:46.1]}
11... Bd6 {[%clk 0:02:45.6]} 12. d4 {[%clk 0:02:26.8]} 12... b6 {[%clk
0:02:44.9]} 13. Bf3 {[%clk 0:02:25]} 13... Ra7 {[%clk 0:02:44.6]} 14. Bxd6
{[%clk 0:02:19.1]} 14... Qxd6 {[%clk 0:02:43.7]} 15. dxc5 {[%clk 0:02:19.6]}
15... Qxc5 {[%clk 0:02:43.5]} 16. Qe2 {[%clk 0:02:15.6]} 16... Bb7 {[%clk
0:02:41.3]} 17. Bxb7 {[%clk 0:02:12.1]} 17... Rxb7 {[%clk 0:02:40.8]} 18. Rad1
{[%clk 0:02:12.5]} 18... b5 {[%clk 0:02:39.3]} 19. Qf3 {[%clk 0:02:00.9]} 19...
Rc7 {[%clk 0:02:36.1]} 20. Rc1 {[%clk 0:00:47.8]} 20... bxc4 {[%clk 0:02:34.3]}
21. bxc4 {[%clk 0:00:39.1]} 21... Qxc4 {[%clk 0:02:29.3]} 22. Ne2 {[%clk
0:00:39.3]} 22... Rfc8 {[%clk 0:02:18]} 23. Rxc4 {[%clk 0:00:39]} 23... Rxc4
{[%clk 0:02:18]} 24. h3 {[%clk 0:00:39.6]} 24... h6 {[%clk 0:02:17.9]} 25. Rd1
{[%clk 0:00:37.9]} 25... Rc2 {[%clk 0:02:16.7]} 26. Ng3 {[%clk 0:00:31.6]} 26...
Rxa2 {[%clk 0:02:12.7]} 27. Qb7 {[%clk 0:00:29.4]} 27... Rf8 {[%clk 0:02:11.7]}
28. Ne4 {[%clk 0:00:24.2]} 28... Nxe4 {[%clk 0:02:08.9]} 29. Qxe4 {[%clk
0:00:25.1]} 29... Ra5 {[%clk 0:02:01]} 30. Rd3 {[%clk 0:00:23.2]} 30... h5
{[%clk 0:01:57.9]} 31. Rg3 {[%clk 0:00:23.3]} 31... g6 {[%clk 0:01:57.4]} 32. h4
{[%clk 0:00:21.6]} 32... Rd8 {[%clk 0:01:55.3]} 33. Rf3 {[%clk 0:00:19.9]} 33...
Rf5 {[%clk 0:01:51.3]} 34. Rxf5 {[%clk 0:00:15.5]} 34... exf5 {[%clk 0:01:51.2]}
35. Qc6 {[%clk 0:00:12.6]} 35... a5 {[%clk 0:01:48]} 36. Kh2 {[%clk 0:00:10]}
36... a4 {[%clk 0:01:32.2]} 37. Qxa4 {[%clk 0:00:09.3]} 37... Rd6 {[%clk
0:01:31.6]} 38. Kg3 {[%clk 0:00:08.7]} 38... Re6 {[%clk 0:01:31.1]} 39. f3
{[%clk 0:00:08.1]} 39... Kg7 {[%clk 0:01:31]} 40. Qd4+ {[%clk 0:00:07.8]} 40...
Kg8 {[%clk 0:01:30.6]} 41. Kf4 {[%clk 0:00:07.7]} 41... Kh7 {[%clk 0:01:28.6]}
42. g4 {[%clk 0:00:07.5]} 42... fxg4 {[%clk 0:01:27.3]} 43. Qd7 {[%clk
0:00:07.7]} 43... Kg7 {[%clk 0:01:25.9]} 44. fxg4 {[%clk 0:00:07.3]} 44... hxg4
{[%clk 0:01:26]} 45. Kxg4 {[%clk 0:00:07.6]} 45... Re4+ {[%clk 0:01:25.5]} 46.
Kg5 {[%clk 0:00:06.9]} 46... Re5+ {[%clk 0:01:25.3]} 47. Kf4 {[%clk 0:00:06.5]}
47... Rf5+ {[%clk 0:01:24.6]} 48. Kg4 {[%clk 0:00:05.5]} 48... Rh5 {[%clk
0:01:24]} 49. Qd4+ {[%clk 0:00:05.4]} 49... Kg8 {[%clk 0:01:24.1]} 50. Qd8+
{[%clk 0:00:05.4]} 50... Kg7 {[%clk 0:01:24.2]} 51. Qd4+ {[%clk 0:00:05.5]}
51... Kg8 {[%clk 0:01:24.4]} 52. Qf6 {[%clk 0:00:06.1]} 52... Rf5 {[%clk
0:01:23.6]} 53. Qd8+ {[%clk 0:00:06.5]} 53... Kg7 {[%clk 0:01:23.8]} 54. Qd4+
{[%clk 0:00:06.4]} 54... Kg8 {[%clk 0:01:24]} 55. Qa4 {[%clk 0:00:06.5]} 55...
Rh5 {[%clk 0:01:23.5]} 56. Qe8+ {[%clk 0:00:06.4]} 56... Kg7 {[%clk 0:01:23.7]}
57. Qc8 {[%clk 0:00:06.5]} 57... Rf5 {[%clk 0:01:22.6]} 58. Qc3+ {[%clk
0:00:05.6]} 58... Kg8 {[%clk 0:01:22.1]} 59. Qe3 {[%clk 0:00:05.2]} 59... Rh5
{[%clk 0:01:21.2]} 60. Qe8+ {[%clk 0:00:05.2]} 60... Kg7 {[%clk 0:01:21.4]} 61.
Qd8 {[%clk 0:00:06.1]} 61... Rf5 {[%clk 0:01:20.8]} 62. Qd4+ {[%clk 0:00:05.8]}
62... Kg8 {[%clk 0:01:21]} 63. Qd8+ {[%clk 0:00:05.5]} 63... Kg7 {[%clk
0:01:20.7]} 1/2-1/2

[Event "*** Titled Tuesday Blitz"]
[Site "Chess.com"]
[Date "2021.03.09"]
[Round "4"]
[White "thisunaa"]
[Black "Rozhkov_V"]
[Result "0-1"]
[WhiteElo "1997"]
[BlackElo "2396"]
[TimeControl "180+1"]
[EndTime "10:41:43 PST"]
[Termination "Rozhkov_V won by checkmate"]

1. e4 {[%clk 0:03:00.9]} 1... c5 {[%clk 0:02:59.7]} 2. Nf3 {[%clk 0:03:00.4]}
2... d6 {[%clk 0:02:59]} 3. d4 {[%clk 0:02:59.5]} 3... cxd4 {[%clk 0:02:59]} 4.
Nxd4 {[%clk 0:02:59.7]} 4... Nf6 {[%clk 0:02:58.6]} 5. Nc3 {[%clk 0:02:59.8]}
5... Nc6 {[%clk 0:02:57.3]} 6. Bg5 {[%clk 0:02:59.4]} 6... Bd7 {[%clk
0:02:56.2]} 7. Qd2 {[%clk 0:02:49.3]} 7... Rc8 {[%clk 0:02:55.6]} 8. O-O-O
{[%clk 0:02:45.4]} 8... Nxd4 {[%clk 0:02:54.8]} 9. Qxd4 {[%clk 0:02:45]} 9...
Qa5 {[%clk 0:02:54.4]} 10. f4 {[%clk 0:02:32.1]} 10... Rxc3 {[%clk 0:02:49.4]}
11. Qxc3 {[%clk 0:02:14.3]} 11... Qxc3 {[%clk 0:02:46.8]} 12. bxc3 {[%clk
0:02:13.7]} 12... Nxe4 {[%clk 0:02:47.3]} 13. Kb2 {[%clk 0:01:21.8]} 13... Nf2
{[%clk 0:02:41.8]} 14. Bd3 {[%clk 0:01:18.2]} 14... Nxh1 {[%clk 0:02:40.6]} 15.
Rxh1 {[%clk 0:01:18]} 15... h6 {[%clk 0:02:38.4]} 16. Bh4 {[%clk 0:01:16.5]}
16... e6 {[%clk 0:02:37.3]} 17. Bf2 {[%clk 0:01:16.5]} 17... b6 {[%clk
0:02:29.4]} 18. Rd1 {[%clk 0:01:15.2]} 18... Be7 {[%clk 0:02:28.9]} 19. c4
{[%clk 0:01:15.1]} 19... g5 {[%clk 0:02:16.7]} 20. fxg5 {[%clk 0:00:49.2]} 20...
hxg5 {[%clk 0:02:16.1]} 21. Bg3 {[%clk 0:00:49.4]} 21... f5 {[%clk 0:02:11.5]}
22. h3 {[%clk 0:00:48]} 22... f4 {[%clk 0:01:42.2]} 23. Bf2 {[%clk 0:00:43.9]}
23... Bc6 {[%clk 0:01:42.1]} 24. Rg1 {[%clk 0:00:25.1]} 24... Bf6+ {[%clk
0:01:34.5]} 25. Kb3 {[%clk 0:00:24.8]} 25... e5 {[%clk 0:01:18]} 26. Bf5 {[%clk
0:00:24.6]} 26... Ke7 {[%clk 0:00:57.6]} 27. Re1 {[%clk 0:00:23.7]} 27... Bxg2
{[%clk 0:00:52.5]} 28. h4 {[%clk 0:00:18.2]} 28... gxh4 {[%clk 0:00:48.7]} 29.
c5 {[%clk 0:00:15.7]} 29... bxc5 {[%clk 0:00:46.2]} 30. Kc3 {[%clk 0:00:15.4]}
30... e4+ {[%clk 0:00:37.4]} 31. Kc4 {[%clk 0:00:14.9]} 31... e3 {[%clk
0:00:36.4]} 32. Bg1 {[%clk 0:00:14.9]} 32... h3 {[%clk 0:00:32.1]} 33. Bh2
{[%clk 0:00:14.9]} 33... Be5 {[%clk 0:00:30.1]} 34. Bg4 {[%clk 0:00:12.8]} 34...
Rb8 {[%clk 0:00:27.4]} 35. Bf5 {[%clk 0:00:06.9]} 35... Rb4+ {[%clk 0:00:26.6]}
36. Kd3 {[%clk 0:00:07.8]} 36... Rd4+ {[%clk 0:00:25.5]} 37. Ke2 {[%clk
0:00:08]} 37... Rd2# {[%clk 0:00:23.3]} 0-1

[Event "*** Titled Tuesday Blitz"]
[Site "Chess.com"]
[Date "2021.03.09"]
[Round "4"]
[White "elegant285"]
[Black "david_alex"]
[Result "0-1"]
[WhiteElo "2274"]
[BlackElo "2087"]
[TimeControl "180+1"]
[EndTime "10:41:43 PST"]
[Termination "david_alex won by resignation"]

1. d4 {[%clk 0:03:00.9]} 1... Nf6 {[%clk 0:02:59.9]} 2. c4 {[%clk 0:03:00.9]}
2... e6 {[%clk 0:03:00.4]} 3. Nf3 {[%clk 0:03:01.3]} 3... d5 {[%clk 0:03:00.3]}
4. g3 {[%clk 0:03:01.7]} 4... dxc4 {[%clk 0:02:59.3]} 5. Bg2 {[%clk 0:03:02.6]}
5... a6 {[%clk 0:02:57]} 6. a4 {[%clk 0:02:56.9]} 6... Nc6 {[%clk 0:02:51.9]} 7.
O-O {[%clk 0:02:56.2]} 7... Bd7 {[%clk 0:02:48.1]} 8. Bg5 {[%clk 0:02:25.5]}
8... Be7 {[%clk 0:02:44.1]} 9. Nbd2 {[%clk 0:02:13.4]} 9... b5 {[%clk
0:02:12.2]} 10. e4 {[%clk 0:01:35]} 10... O-O {[%clk 0:02:05.9]} 11. Qe2 {[%clk
0:01:34.6]} 11... Rb8 {[%clk 0:01:54.4]} 12. Rfd1 {[%clk 0:01:29.9]} 12... Nb4
{[%clk 0:01:37.3]} 13. Nf1 {[%clk 0:01:17.6]} 13... Nd3 {[%clk 0:01:30.5]} 14.
b3 {[%clk 0:01:11.1]} 14... Bc6 {[%clk 0:01:25.1]} 15. Ne5 {[%clk 0:00:44.2]}
15... Nxe5 {[%clk 0:01:03.5]} 16. dxe5 {[%clk 0:00:45.1]} 16... Nd7 {[%clk
0:01:03.6]} 17. Bxe7 {[%clk 0:00:35.2]} 17... Qxe7 {[%clk 0:01:04.5]} 18. bxc4
{[%clk 0:00:36]} 18... bxa4 {[%clk 0:00:55]} 19. f4 {[%clk 0:00:29.2]} 19... Nc5
{[%clk 0:00:53.8]} 20. Nd2 {[%clk 0:00:20.2]} 20... Rfd8 {[%clk 0:00:52.3]} 21.
Rab1 {[%clk 0:00:16.9]} 21... Nb3 {[%clk 0:00:42.7]} 22. Nf3 {[%clk 0:00:12.8]}
22... Qc5+ {[%clk 0:00:35.7]} 23. Kh1 {[%clk 0:00:12.5]} 23... Rxd1+ {[%clk
0:00:31.9]} 24. Rxd1 {[%clk 0:00:11.8]} 24... a3 {[%clk 0:00:30.8]} 25. Qa2
{[%clk 0:00:11.3]} 25... Na5 {[%clk 0:00:24.1]} 26. Nd2 {[%clk 0:00:09.9]} 26...
h6 {[%clk 0:00:17.7]} 27. Nb1 {[%clk 0:00:07.4]} 27... Rb2 {[%clk 0:00:16.9]}
28. Qxa3 {[%clk 0:00:03.5]} 28... Qxa3 {[%clk 0:00:13.9]} 29. Nxa3 {[%clk
0:00:04.4]} 29... Ra2 {[%clk 0:00:14.2]} 30. Nb1 {[%clk 0:00:04.5]} 30... Nxc4
{[%clk 0:00:14.1]} 31. Nc3 {[%clk 0:00:05.4]} 31... Rc2 {[%clk 0:00:13.7]} 32.
Nb1 {[%clk 0:00:03.7]} 32... Ne3 {[%clk 0:00:13.8]} 33. Re1 {[%clk 0:00:02.3]}
33... Nxg2 {[%clk 0:00:12.2]} 0-1

[Event "*** Titled Tuesday Blitz"]
[Site "Chess.com"]
[Date "2021.03.09"]
[Round "4"]
[White "kubal123"]
[Black "jraosam"]
[Result "0-1"]
[WhiteElo "2267"]
[BlackElo "1907"]
[TimeControl "180+1"]
[EndTime "10:41:43 PST"]
[Termination "jraosam won by resignation"]

1. d4 {[%clk 0:03:00.9]} 1... e6 {[%clk 0:03:00.9]} 2. Bf4 {[%clk 0:02:59.9]}
2... d5 {[%clk 0:03:01.8]} 3. e3 {[%clk 0:02:59.8]} 3... Bd6 {[%clk 0:03:01]} 4.
Bg3 {[%clk 0:02:58.8]} 4... Nf6 {[%clk 0:02:53.4]} 5. Nf3 {[%clk 0:02:58.6]}
5... Ne4 {[%clk 0:02:51.5]} 6. Bh4 {[%clk 0:02:56.2]} 6... Be7 {[%clk
0:02:44.5]} 7. Bxe7 {[%clk 0:02:55.6]} 7... Qxe7 {[%clk 0:02:44]} 8. Nbd2 {[%clk
0:02:56.5]} 8... Nxd2 {[%clk 0:02:41.7]} 9. Qxd2 {[%clk 0:02:57.4]} 9... c5
{[%clk 0:02:39.4]} 10. dxc5 {[%clk 0:02:53.1]} 10... Qxc5 {[%clk 0:02:36.1]} 11.
Qd4 {[%clk 0:02:51.2]} 11... Qa5+ {[%clk 0:02:32.1]} 12. c3 {[%clk 0:02:28.8]}
12... O-O {[%clk 0:02:30.1]} 13. Bd3 {[%clk 0:02:28.1]} 13... Nc6 {[%clk
0:02:26.6]} 14. Qh4 {[%clk 0:02:28]} 14... h6 {[%clk 0:02:21.9]} 15. O-O {[%clk
0:02:07.4]} 15... e5 {[%clk 0:02:16.4]} 16. e4 {[%clk 0:02:05.7]} 16... d4
{[%clk 0:02:13.3]} 17. cxd4 {[%clk 0:02:04.2]} 17... Nxd4 {[%clk 0:02:13.6]} 18.
Nxd4 {[%clk 0:02:03.3]} 18... exd4 {[%clk 0:02:12.4]} 19. f4 {[%clk 0:01:49.9]}
19... Qd2 {[%clk 0:02:05.7]} 20. Rad1 {[%clk 0:01:42.9]} 20... Qxb2 {[%clk
0:02:03.1]} 21. e5 {[%clk 0:01:38.4]} 21... f5 {[%clk 0:01:56.2]} 22. Bc4+
{[%clk 0:01:17.4]} 22... Kh8 {[%clk 0:01:52.2]} 23. Rd3 {[%clk 0:01:11.4]} 23...
Bd7 {[%clk 0:01:44.3]} 24. Qe7 {[%clk 0:01:07.3]} 24... Bc6 {[%clk 0:01:41.9]}
25. Rg3 {[%clk 0:01:07.7]} 25... Rg8 {[%clk 0:01:35.8]} 26. Bxg8 {[%clk
0:01:02.7]} 26... Rxg8 {[%clk 0:01:36.7]} 27. Qd6 {[%clk 0:00:51]} 27... Bb5
{[%clk 0:01:27.6]} 28. Rd1 {[%clk 0:00:47.6]} 28... d3 {[%clk 0:01:22.4]} 29. e6
{[%clk 0:00:39.2]} 29... Qe2 {[%clk 0:01:19.4]} 30. Rb1 {[%clk 0:00:12.8]} 30...
d2 {[%clk 0:01:17]} 31. Rg6 {[%clk 0:00:13.3]} 31... Bd3 {[%clk 0:01:10.8]} 32.
e7 {[%clk 0:00:13.7]} 32... d1=Q+ {[%clk 0:01:08]} 33. Rxd1 {[%clk 0:00:13]}
33... Qxd1+ {[%clk 0:01:08.9]} 34. Kf2 {[%clk 0:00:13.9]} 34... Qf1+ {[%clk
0:01:06.3]} 35. Kg3 {[%clk 0:00:13.4]} 35... Qe1+ {[%clk 0:00:48.2]} 36. Kh3
{[%clk 0:00:13.3]} 36... Kh7 {[%clk 0:00:47.4]} 37. Re6 {[%clk 0:00:09.1]} 37...
Qd1 {[%clk 0:00:40.6]} 38. Rg6 {[%clk 0:00:02]} 38... Qh5+ {[%clk 0:00:38.8]}
39. Kg3 {[%clk 0:00:02.5]} 39... Qxg6+ {[%clk 0:00:39]} 40. Qxg6+ {[%clk
0:00:03.1]} 40... Kxg6 {[%clk 0:00:38.9]} 41. Kf2 {[%clk 0:00:04]} 41... Re8
{[%clk 0:00:37]} 42. Ke3 {[%clk 0:00:04.9]} 42... Bc4 {[%clk 0:00:34.6]} 43. Kd4
{[%clk 0:00:05.8]} 0-1

[Event "*** Titled Tuesday Blitz"]
[Site "Chess.com"]
[Date "2021.03.09"]
[Round "4"]
[White "NiranjanNavalgund"]
[Black "seorobert1971"]
[Result "0-1"]
[WhiteElo "2453"]
[BlackElo "2723"]
[TimeControl "180+1"]
[EndTime "10:41:45 PST"]
[Termination "seorobert1971 won by resignation"]

1. e4 {[%clk 0:03:00.9]} 1... c6 {[%clk 0:02:58.7]} 2. Nc3 {[%clk 0:03:00.5]}
2... d5 {[%clk 0:02:59.6]} 3. Nf3 {[%clk 0:03:00.5]} 3... dxe4 {[%clk
0:02:59.6]} 4. Nxe4 {[%clk 0:03:00.2]} 4... Nd7 {[%clk 0:03:00.1]} 5. d4 {[%clk
0:02:54.3]} 5... Ngf6 {[%clk 0:02:59.8]} 6. Ng3 {[%clk 0:02:53.8]} 6... g6
{[%clk 0:02:57.9]} 7. h4 {[%clk 0:02:50.9]} 7... h6 {[%clk 0:02:53.4]} 8. Bf4
{[%clk 0:02:47.1]} 8... Bg7 {[%clk 0:02:50.4]} 9. Bc4 {[%clk 0:02:42.5]} 9...
Nd5 {[%clk 0:02:48.2]} 10. Bd2 {[%clk 0:02:40.9]} 10... N7b6 {[%clk 0:02:47.6]}
11. Bb3 {[%clk 0:02:37.2]} 11... Bg4 {[%clk 0:02:45.9]} 12. c4 {[%clk
0:02:37.4]} 12... Nf6 {[%clk 0:02:41.8]} 13. Bc3 {[%clk 0:02:34.8]} 13... Nh5
{[%clk 0:02:38.2]} 14. Nxh5 {[%clk 0:02:29.7]} 14... Bxh5 {[%clk 0:02:37.1]} 15.
Qd3 {[%clk 0:02:28.1]} 15... Bxf3 {[%clk 0:02:34.2]} 16. gxf3 {[%clk 0:02:23.9]}
16... e6 {[%clk 0:02:29.7]} 17. O-O-O {[%clk 0:02:22.9]} 17... h5 {[%clk
0:02:28.7]} 18. Kb1 {[%clk 0:02:21.8]} 18... O-O {[%clk 0:02:27.5]} 19. Rhg1
{[%clk 0:02:12.9]} 19... a5 {[%clk 0:02:25.5]} 20. d5 {[%clk 0:02:11.2]} 20...
Bxc3 {[%clk 0:02:13.6]} 21. Qxc3 {[%clk 0:02:08]} 21... cxd5 {[%clk 0:02:10.9]}
22. c5 {[%clk 0:02:01.7]} 22... Nd7 {[%clk 0:02:10.6]} 23. Bc2 {[%clk
0:02:01.6]} 23... Qf6 {[%clk 0:02:07.6]} 24. Qe3 {[%clk 0:01:53.8]} 24... Ne5
{[%clk 0:01:57.6]} 25. Rg5 {[%clk 0:01:46.3]} 25... Nc4 {[%clk 0:01:49.7]} 26.
Qc1 {[%clk 0:01:45.1]} 26... Rfc8 {[%clk 0:01:22.6]} 27. Rdg1 {[%clk 0:01:44.5]}
27... Rxc5 {[%clk 0:01:17.9]} 28. Rxh5 {[%clk 0:01:13]} 28... Rac8 {[%clk
0:01:09.3]} 29. b3 {[%clk 0:00:46.2]} 29... Nd6 {[%clk 0:01:06.2]} 30. Qh6
{[%clk 0:00:36.5]} 30... Rxc2 {[%clk 0:00:58]} 31. Qh7+ {[%clk 0:00:35.5]} 31...
Kf8 {[%clk 0:00:57.8]} 32. Qh8+ {[%clk 0:00:34.1]} 32... Qxh8 {[%clk 0:00:53.6]}
33. Rxh8+ {[%clk 0:00:35]} 33... Kg7 {[%clk 0:00:52]} 34. Rxc8 {[%clk
0:00:35.9]} 34... Rxc8 {[%clk 0:00:51.7]} 35. h5 {[%clk 0:00:35.3]} 35... Nf5
{[%clk 0:00:50.1]} 36. hxg6 {[%clk 0:00:36.2]} 36... fxg6 {[%clk 0:00:50.8]} 37.
Re1 {[%clk 0:00:36.1]} 37... Kf6 {[%clk 0:00:50.7]} 38. f4 {[%clk 0:00:36.1]}
38... b5 {[%clk 0:00:47.7]} 39. Rh1 {[%clk 0:00:36]} 39... Rc3 {[%clk
0:00:46.7]} 40. Rh7 {[%clk 0:00:35.9]} 40... Rf3 {[%clk 0:00:45.6]} 41. Rb7
{[%clk 0:00:36]} 41... Nd4 {[%clk 0:00:45.2]} 42. a4 {[%clk 0:00:35.4]} 42... b4
{[%clk 0:00:43.7]} 43. f5 {[%clk 0:00:34.8]} 43... gxf5 {[%clk 0:00:42.4]} 44.
Ra7 {[%clk 0:00:33.2]} 44... Rxf2 {[%clk 0:00:41.5]} 45. Rh7 {[%clk 0:00:33]}
45... f4 {[%clk 0:00:39.9]} 46. Rh6+ {[%clk 0:00:33.2]} 46... Ke5 {[%clk
0:00:39.8]} 47. Rh1 {[%clk 0:00:28.7]} 47... f3 {[%clk 0:00:39.2]} 48. Re1+
{[%clk 0:00:28.5]} 48... Re2 {[%clk 0:00:38.5]} 49. Rh1 {[%clk 0:00:28.5]} 49...
f2 {[%clk 0:00:38.2]} 50. Rd1 {[%clk 0:00:26.1]} 50... Re1 {[%clk 0:00:36.5]}
0-1